Cogmind - Beta 16 @@@ ROGUE MODE // 2025.10.25 @ 17:07:15 Player: welikiq Result: Self-destructed Performance ------------- Evolutions (1) 500 Regions Visited (3) 600 Robots Destroyed (20) 100 Value Destroyed (558) 558 Prototype IDs (0) 0 Alien Tech Used (0) 0 Bonus (0) 0 TOTAL SCORE: 1758 Bonus ------- None Cogmind --------- Core Integrity 247/400 Matter 220/300 Energy 5/100 System Corruption 0% Temperature Cool (0) Movement Walking (105) Location -9/Mines Parts ------- > --- POWER (1) -------- (None) > --- PROPULSION (4) --- Aluminum Leg Aluminum Leg Aluminum Leg > --- UTILITY (2) ------ Seismic Detector > --- WEAPON (2) ------- Beam Cannon Mini Grenade Launcher > --- INVENTORY (5) ---- Small Storage Unit Terrain Scanner Improved Targeting Computer Peak State ------------ > --- POWER ------------ Ion Engine > --- PROPULSION ------- Aluminum Leg Aluminum Leg Aluminum Leg Aluminum Leg > --- UTILITY ---------- Sensor Array Seismic Detector > --- WEAPON ----------- Beam Cannon Light Cannon > --- INVENTORY -------- Small Storage Unit Terrain Scanner Improved Targeting Computer Light Cannon [Rating: 9] Favorites ----------- Power Ion Engine Engine Ion Engine Propulsion Aluminum Leg Leg Aluminum Leg Utility Seismic Detector Device Seismic Detector Weapon Light Cannon Energy Cannon Beam Cannon Ballistic Gun Assault Rifle Ballistic Cannon Light Cannon Launcher Mini Grenade Launcher Build | -11 -10 -9 -9 ------- Run | Yrd Mat Mat Min Slots Evolved 2 | . . 2 . Power . | . . . . Propulsion 2 | . . 2 . Utility . | . . . . Weapon . | . . . . Parts Attached 15 | 6 5 3 1 Power 1 | 1 . . . Engine 1 | 1 . . . Core . | . . . . Reactor . | . . . . Propulsion 5 | 2 . 3 . Treads . | . . . . Leg 5 | 2 . 3 . Wheel . | . . . . Hover . | . . . . Flight . | . . . . Utility 3 | 1 2 . . Device 3 | 1 2 . . Storage . | . . . . Processor . | . . . . Hackware . | . . . . Protection . | . . . . Artifact . | . . . . Weapon 6 | 2 3 . 1 Energy Gun . | . . . . Energy Cannon 1 | . 1 . . Ballistic Gun 2 | 2 . . . Ballistic Cannon 2 | . 2 . . Launcher 1 | . . . 1 Special Weapon . | . . . . Impact Weapon . | . . . . Slashing Weapon . | . . . . Piercing Weapon . | . . . . Special Melee Weapon . | . . . . Unidentified Prototypes . | . . . . Parts Lost 4 | . . . 4 Power 1 | . . . 1 Propulsion 1 | . . . 1 Utility 1 | . . . 1 Weapon 1 | . . . 1 Highest Loss Streak 4 | . . . 4 To Critical Strikes . | . . . . Average Backups 2 | . 1 3 3 Power . | . . . . Propulsion . | . . . . Utility 2 | . 1 2 3 Weapon . | . . . . Tool/Special . | . . . . Unused Backups 3 | . . 1 2 Power . | . . . . Propulsion . | . . . . Utility 2 | . . . 2 Weapon 1 | . . 1 . Tool/Special . | . . . . Average Slot Usage (%) 91 | . 98 90 87 Engine 11 | . 14 11 7 Leg 33 | . 28 34 39 Device 22 | . 26 22 18 Energy Cannon 9 | . 4 11 11 Ballistic Gun 1 | . 4 . . Ballistic Cannon 12 | . 18 11 7 Peak Build Rating 9 | 6 7 9 9 Average Rating 7 | 4 6 8 8 On Entrance 5 | . 6 7 9 Avg Prop Armor Cover (%) . | . . . . Naked Turns . | . . . . Heaviest Build 13 | 10 13 13 13 Greatest Support 40 | 20 20 40 40 Greatest Overweight (x) . | . . . . Average Overweight (x) . | . . . . Largest Inventory Capacity 5 | 5 5 5 5 Average Capacity 5 | 5 5 5 5 Most Carried 5 | . 3 5 3 Average Carried 2 | . 1 3 3 Final Capacity 5 | 5 5 5 5 Final Carried 3 | . 3 3 3 Class Distribution -------------------- 61% | Mutant 38% | Scavenger-Mutant Dominant Class ---------------- Mutant | -10/Materials Mutant | -9/Materials Scavenger-Mutant | -9/Mines Resources | -11 -10 -9 -9 ----------- Run | Yrd Mat Mat Min Matter Collected 575 | 180 39 333 23 Remotely . | . . . . Salvage Created 639 | 20 40 501 78 Parts 40 | 2 11 25 2 Haulers Intercepted . | . . . . Recyclers Shooed 1 | . . 1 . Parts Field Recycled . | . . . . Retrieved Matter . | . . . . Parts Self-Destructed . | . . . . Prevented . | . . . . Parts Restored . | . . . . Kills | -11 -10 -9 -9 ------- Run | Yrd Mat Mat Min Combat Hostiles Destroyed 18 | . 3 10 5 Cannons 18 | . 3 10 5 Classes Destroyed 11 | 1 3 5 2 Worker 1 | . . 1 . Builder 1 | . 1 . . Tunneler 1 | 1 . . . Recycler 1 | . . 1 . Watcher 1 | . 1 . . Swarmer 3 | . 3 . . Grunt 7 | . . 7 . Brawler 1 | . . 1 . Sentry 2 | . . 2 . Demolisher 2 | . . . 2 Assembled 3 | . . . 3 Best Kill Streak 5 | 1 3 5 3 Combat Bots Only 5 | . 3 5 3 Max Kills in Single Turn 2 | 1 1 2 1 Gunslinging . | . . . . Exploded . | . . . . Melee . | . . . . Uniques/NPCs Destroyed . | . . . . Combat | -11 -10 -9 -9 -------- Run | Yrd Mat Mat Min Hostile Shots Fired 80 | . 22 33 25 Missed 23 | . 10 7 6 Hits 57 | . 12 26 19 Melee 2 | . . 2 . Projectile 55 | . 12 24 19 AOE 5 | . . . 5 Critical Strikes 1 | . . 1 . Damage Taken 824 | . 91 362 371 Core 172 | . 19 102 51 Absorbed by Shields . | . . . . Core Remaining (%) 96 | 100 92 . . Volleys Fired 60 | 1 13 25 21 Largest 2 | 2 2 2 2 Hottest 90 | 40 60 90 90 Shots Fired 117 | 2 26 50 39 Gun 6 | 2 4 . . Cannon 103 | . 22 50 31 Launcher 8 | . . . 8 Special . | . . . . Kinetic 63 | 2 26 25 10 Thermal 46 | . . 25 21 Explosive 8 | . . . 8 Electromagnetic . | . . . . Robot Hit Streak 13 | 1 2 13 6 Robot Miss Streak 5 | . 5 3 3 Penetration Max . | . . . . Secondary Targets . | . . . . Shots Hit Robots 59 | 1 9 34 15 Core Hits 31 | 1 4 16 10 Critical Kills . | . . . . Critical Parts Destroyed . | . . . . Critical Strikes 4 | . 2 2 . Blast 4 | . 2 2 . Melee Attacks . | . . . . Impact . | . . . . Slashing . | . . . . Piercing . | . . . . Sneak Attacks . | . . . . Combat Hostiles . | . . . . Follow-up Attacks . | . . . . Damage Inflicted 1054 | 13 144 610 287 Guns 23 | 13 10 . . Cannons 1011 | . 134 597 280 Explosions . | . . . . Melee . | . . . . Ramming 20 | . . 13 7 Kinetic 527 | 13 144 266 104 Thermal 507 | . . 331 176 Explosive . | . . . . Electromagnetic . | . . . . Impact . | . . . . Slashing . | . . . . Piercing . | . . . . Highest Corruption . | . . . . Average Corruption . | . . . . Corruption Purged . | . . . . Corruption Blocked . | . . . . Overload Shots . | . . . . Overflow Damage 17 | . 15 . 2 Projectiles 17 | . 15 . 2 Explosions . | . . . . Melee . | . . . . Knockbacks 8 | . 2 3 3 Impact . | . . . . Kinetic 7 | . 1 3 3 Secondary 1 | . 1 . . Self-Inflicted Damage . | . . . . Shots . | . . . . Rammed . | . . . . Targets Rammed 3 | . . 1 2 Kicked 3 | . . 1 2 Crushed . | . . . . Highest Temperature 177 | . . 177 126 Average Temperature 61 | . . 69 47 Received Heat Transfer 141 | . . 141 . Siege Activations . | . . . . Martial Activations . | . . . . Shielding Activations . | . . . . Robots Disrupted . | . . . . Combat Hostiles . | . . . . Robots Corrupted . | . . . . Combat Hostiles . | . . . . Parts Fried . | . . . . Impact Corruptions . | . . . . Robots Melted . | . . . . Combat Hostiles . | . . . . Parts Melted 1 | . . 1 . Heat Transferred 1073 | . . 703 370 Parts Sabotaged . | . . . . Parts Stolen . | . . . . Parts Stripped . | . . . . Power Chain Reactions . | . . . . Alert | -11 -10 -9 -9 ------- Run | Yrd Mat Mat Min Maximum Alert Level 1 | . . 1 . Low Security (%) 94 | 100 100 91 100 Level 1 5 | . . 8 . Level 2 . | . . . . Level 3 . | . . . . Level 4 . | . . . . Level 5 . | . . . . High Security . | . . . . Max Security . | . . . . Peak Influence 228 | 5 132 228 31 Initial 31 | . . 21 31 Average 63 | . 47 85 13 Influence Increases 523 | 5 154 296 68 Destroy 0b10 Robot/C 300 | . 60 200 40 Destroy 0b10 Robot/NC 25 | 5 10 10 . Destroy Leader 72 | . 12 50 10 Successful Hack 6 | . . 6 . Disable Machine 15 | . 15 . . Destroy Structure 45 | . 27 . 18 Lose Combat Pursuer 60 | . 30 30 . Influence Decreases 505 | 5 102 266 132 Entered New Map 82 | . . 31 51 Time Decay 413 | 5 102 235 71 Lost Part 10 | . . . 10 Squads Dispatched 1 | . . 1 . Investigation 1 | . . 1 . Extermination . | . . . . Reinforcement . | . . . . Assault . | . . . . Garrison . | . . . . Intercept . | . . . . Searches Triggered . | . . . . Construction Impeded . | . . . . Haulers Reinforced . | . . . . Active Scanning Responses . | . . . . Cargo Convoy Interrupts . | . . . . Stealth | -11 -10 -9 -9 --------- Run | Yrd Mat Mat Min Distress Signals 5 | . 1 4 . Communications Jammed . | . . . . Distress Signals . | . . . . Times Spotted 32 | . 7 16 9 Peak Tracking Total 6 | . 3 5 6 Tactical Retreats 3 | . 1 2 . Traps | -11 -10 -9 -9 ------- Run | Yrd Mat Mat Min Traps Triggered 1 | . . 1 . Indirectly . | . . . . Trap Hack Attempts . | . . . . Triggered . | . . . . Disarmed . | . . . . Reprogrammed . | . . . . Reused . | . . . . Traps Extracted . | . . . . Installed . | . . . . Triggered . | . . . . Machines | -11 -10 -9 -9 ---------- Run | Yrd Mat Mat Min Machines Disabled 1 | . 1 . . Max in Single Turn 1 | . 1 . . Machines Repaired . | . . . . Machines Dismantled . | . . . . Machines Sabotaged . | . . . . Overloaded Fab Kills . | . . . . Hacking | -11 -10 -9 -9 --------- Run | Yrd Mat Mat Min Machines Accessed 4 | . 2 2 . Terminals 1 | . 1 . . Fabricators . | . . . . Repair Stations . | . . . . Recycling Units 2 | . 1 1 . Scanalyzers 1 | . . 1 . Garrison Access . | . . . . Total Hacks 10 | . 4 6 . Successful 7 | . 2 5 . Failed 3 | . 2 1 . Catastrophic 1 | . 1 . . Database Lockouts . | . . . . Manual . | . . . . Terminals 2 | . 2 . . Fabricators . | . . . . Repair Stations . | . . . . Recycling Units 3 | . 2 1 . Scanalyzers 5 | . . 5 . Garrison Access . | . . . . Terminal Hacks . | . . . . Fabricator Hacks . | . . . . Repair Station Hacks . | . . . . Recycling Unit Hacks 3 | . 2 1 . Process 1 | . 1 . . Report Inventory 1 | . . 1 . Retrieve Components 1 | . 1 . . Scanalyzer 4 | . . 4 . Insert Component 1 | . . 1 . Retrieve Study 3 | . . 3 . Garrison Access Hacks . | . . . . Unauthorized Hacks . | . . . . Terminals . | . . . . Fabricators . | . . . . Repair Stations . | . . . . Recycling Units . | . . . . Scanalyzers . | . . . . Garrison Access . | . . . . Data Cores Recovered . | . . . . Used . | . . . . Hacking Detections 2 | . 1 1 . Full Trace Events 1 | . . 1 . Feedback Events . | . . . . Feedback Blocked . | . . . . Robot Schematics Acquired . | . . . . Robots Built . | . . . . Authchips . | . . . . Time . | . . . . Total Robot Build Rating . | . . . . Part Schematics Acquired . | . . . . Parts Built . | . . . . Authchips . | . . . . Time . | . . . . Total Part Build Rating . | . . . . Part Studies Acquired 3 | . . 3 . Parts Repaired . | . . . . Time . | . . . . Parts Recycled . | . . . . Recycled Matter 250 | . 250 . . Retrieved Matter . | . . . . Retrieved Components . | . . . . Parts Scanalyzed . | . . . . Part Schematics Acquired . | . . . . Parts Damaged . | . . . . Bothacking | -11 -10 -9 -9 ------------ Run | Yrd Mat Mat Min Used RIF Installer . | . . . . Robots Hacked . | . . . . Non-combat . | . . . . Combat . | . . . . Robot Hacks Applied . | . . . . Relay Couplers Released . | . . . . Fabnet Peak Effective % . | . . . . Robots Rewired . | . . . . Allies Hacked . | . . . . Hacks Repelled . | . . . . Allies | -11 -10 -9 -9 -------- Run | Yrd Mat Mat Min Total Allies . | . . . . Largest Group . | . . . . Highest-Rated Group . | . . . . Highest-Rated Ally . | . . . . Total Orders . | . . . . Ally Attacks . | . . . . Total Damage . | . . . . Kills . | . . . . Allies Corrupted . | . . . . Allies Melted . | . . . . Intel | -11 -10 -9 -9 ------- Run | Yrd Mat Mat Min Active Infowar (turns) 1401 | 26 325 856 194 Sensors 1244 | . 263 856 125 Terrain 32 | . 32 . . Seismic 1401 | 26 325 856 194 Robot Analysis Total . | . . . . Derelict Logs Recovered . | . . . . Drone Launches . | . . . . Drone Recoveries . | . . . . Exploration | -11 -10 -9 -9 ------------- Run | Yrd Mat Mat Min Turns Passed 1441 | 66 325 856 194 Spaces Moved 661 | 47 192 298 124 Core 4 | 4 . . . Treads . | . . . . Legs 657 | 43 192 298 124 Wheels . | . . . . Hover . | . . . . Flight . | . . . . Fastest Speed 50 | 50 120 105 105 Average Speed 111 | 114 120 108 105 Slowest Speed 120 | 120 120 120 105 Overloaded Moves . | . . . . Propulsion Burnouts . | . . . . Robots Hopped . | . . . . Potential Cave-ins . | . . . . Cave-ins Triggered . | . . . . Exploration Rate (%) 19 | 4 33 19 20 Regions Visited 3 Branch Regions 1 Pre-discovered Areas . | . . . . Known Exits Taken . | . . . . Unknown Exits Taken 3 | 1 1 1 . Scrap Searched . | . . . . Spaces Dug 11 | . . . 11 Terrain Destroyed 101 | . 28 . 73 Melee . | . . . . Projectile . | . . . . AOE 101 | . 28 . 73 Terrain Rammed . | . . . . Walls Destroyed . | . . . . Machines Disabled . | . . . . Actions | -11 -10 -9 -9 --------- Run | Yrd Mat Mat Min Total 1240 | 54 257 781 148 Wait 496 | 1 45 450 . Move 658 | 46 191 297 124 Hop . | . . . . Pick Up 4 | . 2 2 . Fast Attach 10 | 6 1 2 1 Attach . | . . . . Detach . | . . . . Swap 6 | . 5 1 . Drop 3 | . . 3 . Fire 60 | 1 13 25 21 Melee . | . . . . Ram . | . . . . Kick 3 | . . 1 2 Crush . | . . . . Escape Stasis . | . . . . Rewire . | . . . . Trap . | . . . . Miscellaneous . | . . . . Route ------- -11/Scrapyard -10/Materials -9/Materials -9/Mines History --------- Turn | Location | Event 7 | -11/Scrapyard | Discovered new exit (range 15) 67 | -11/Scrapyard | Entered Materials 308 | -10/Materials | Build established: Mutant 314 | -10/Materials | Discovered new exit (range 10) 392 | -10/Materials | Entered another Materials area 392 | -9/Materials | Evolved 2 slots: Propulsion x2 918 | -9/Materials | Discovered new exit (range 14) 1169 | -9/Materials | Build established: Scavenger-Mutant 1248 | -9/Materials | Entered Mines 1256 | -9/Mines | Assembled infested the area 1261 | -9/Mines | Assisted by a Guerilla fighting off Assembled 1404 | -9/Mines | Lost 4 parts (1p1n1u1w) 1442 | -9/Mines | Self-destructed Last Messages --------------- 01417_ The unstable cave ceiling collapses. 01417_ U-05 Engineer lays Concrete. 01419_ The unstable cave ceiling collapses. 01419_ U-05 Engineer builds a Wall. 01420_ K-01 Serf collects debris. 01423_ U-05 Engineer lays Concrete. 01424_ K-01 Serf collects debris. 01425_ The unstable cave ceiling collapses. 01425_ U-05 Engineer lays Concrete. 01428_ The unstable cave ceiling collapses. 01428_ U-05 Engineer lays Concrete. 01428_ K-01 Serf collects debris. 01429_ The unstable cave ceiling collapses. 01430_ U-05 Engineer builds a Wall. 01433_ K-01 Serf collects debris. 01436_ The unstable cave ceiling collapses. 01438_ U-05 Engineer builds a Wall. 01438_ K-01 Serf collects debris. 01440_ The unstable cave ceiling collapses. 01442_ K-01 Serf collects debris. Map ----- +----------------------------------------------------+ | ??????????????????????????????????????????? | | ??????????????????????????????????????????? | | ??????????????????????????????????????????? | | ??????????????????????????????????????????? | | ??????????????????????????????????????????? | | ??????????????????????????????????????????? | | ??????????????????????????????????????????? | | ??????????????????????????????????????????? | | ??????????????????????????????????????????? | | ??????????????????????????????????????????? | | ???????????????????????????? ???????????? | | ???????????????????????###? ???????????? | | ??????????????????????## ## ???????????? | | ?????????????????????## # ???????????? | | ?????????????????????# ##??????????? | | ?????????????????????# ##?????????? | | ?????????????????????? # #?????????? | | ?????????????????????## #?????????? | | ?????????????????????# ##????????? | | ??????????????????????# ##???????? | | ???????????????????????# # ####????? | | ???????????????????????# ##???? | | ???????????????????????# #???? | | ????????????????######## k ## #???? | | ?????????????? % ##?? ##???? | | ?????????????????### ####@ ##???##????? | | ?????????????????????##?## #?????????? | | ???????????????????#?? #?# ####??????? | | ??????????????????## ## ### #"##?????? | | ????????????????### "#### ##????? | | ????????????????# % # #????? | | ?????????????????# % #????? | | ?????????????????# % #????? | | ?????????????????#### #????? | | ????????????????????### # #????? | | ??????????????????????#### % % ##????? | | ???????????????????????### ## # #?????? | | ?????????????????????????## # % ##?????? | | ????????????###??????????# # #####??????? | | ???????????## #####??????### # ##???????? | | ???????????# #??????## ##??????? | | ???????????# ##?????# #??????? | | ???????????# ## #????#### #??????? | | ???????????###### ##????# # ##??????? | | ????????????????# #?????# # = # # ###?????? | | ????????????????# #?????# # #?????? | | ????????????????# #?????# #?????? | | ??????????????### ####??# #?????? | | ??????????????# #??# ##### #?????? | | ??????????????# #### #????### ##?????? | +----------------------------------------------------+ Best States ------------- Heat Dissipation 28 Energy Generation 12 Energy Capacity 250 Matter Stores 300 Matter Capacity 300 Sight Range 16 Robot Scan Range 14 Terrain Scan Range 14 Terrain Scan Density 10 Evasion (%) 55 Item Schematics ----------------- None Robot Schematics ------------------ None Fabricated ------------ Nothing Repaired ---------- Nothing Studied --------- Aluminum Leg | -9/Materials | Hacked Ion Engine | -9/Materials | Hacked Beam Cannon | -9/Materials | Hacked Alien Tech Used ----------------- None Achievements -------------- None Challenges ------------ None Game ------ Seed InertialZhirovShredder Manual? 0 Play Time 00:13:21 Cumulative 9.8 hours Start 2025.10.25 @ 16:55:31 End 2025.10.25 @ 17:07:15 Sessions 1 Manual Loads 0 Difficulty Rogue Special Mode None Game No. 25 Rogue 25 Adventurer 0 Explorer 0 Win Type - Total 0 Types 0/0/0/0/0/0/0/0/0/0 Lore% 3 Gallery% 10 Achievement% 9 Wizard Run 0 Options --------- Layout 0 ASCII 0 Keyboard 1 Movement Numpad Keybinds 0 Fullscreen 1 Font 24/Smallcaps Map View 76x50 Zoom Use 49% Tactical HUD 1 Map Filters NONE Filters NONE Steam 1 RUN: d4ee71e0-fda5-4c58-9026-bb391ffe87de